Workbook

Sheet REV
A1: MCCORMICK COUNTY
A2: REVENUES
A3: FY 2023
A5: LOCAL REVENUES | B5: FY 2019-2020 | C5: FY 2020-2021 | D5: FY 2021-2022 | E5: FY 2022-2023
A6: Property Taxes - Real Estate | B6: 4546376 | C6: 4881584 | D6: 5334374 | E6: 5968447
A7: Property Taxes - Current Ye Delinquent | B7: 230000 | C7: 230000 | D7: 230000 | E7: 230000
A8: Property Taxes - Vehicles | B8: 461000 | C8: 461000 | D8: 461000 | E8: 462000
A9: Solid Waste Fees | B9: 415200 | C9: 415200 | D9: 415200 | E9: 416000
A10: Clerk of Court Fines | B10: 2500 | C10: 2500 | D10: 2500 | E10: 2500
A11: Family Court Fines | B11: 103000 | C11: 103000 | D11: 103000 | E11: 150000
A12: Magistrate Fines | B12: 70000 | C12: 70000 | D12: 70000 | E12: 70000
A13: Probate Judge Fees | B13: 18000 | C13: 30000 | D13: 30000 | E13: 30000
A14: Sheriff Fees | B14: 1200 | C14: 1200 | D14: 1200 | E14: 1200
A15: Bote Tax Assessor's Fees | B15: 1500 | C15: 1500 | D15: 1500 | E15: 1500
A16: Tax Collection Fees-Towns | B16: 2000 | C16: 2000 | D16: 2000 | E16: 2000
A17: Building Permits | B17: 130000 | C17: 130000 | D17: 145000 | E17: 200000
A18: Mobile Home Permits | B18: 2000 | C18: 2000 | D18: 2000 | E18: 3000
A19: Zoning Permit | B19: 500 | C19: 500 | D19: 500 | E19: 500
A20: FLC Tax Sale Interest | B20: 0 | C20: 8000 | D20: 8000 | E20: 10000
A21: Copies | B21: 100 | C21: 100 | D21: 100 | E21: 100
A22: Franchise Fee | B22: 69000 | C22: 69000 | D22: 69000 | E22: 69000
A23: L.O.S.T. County Portion | B23: 150000 | C23: 150000 | D23: 150000 | E23: 150000
A24: Bad Checks | B24: 0 | C24: 0 | D24: 0 | E24: 100
A25: Rollback L.O.S.T. | B25: 375000 | C25: 375000 | D25: 375000 | E25: 375000
A26: FLC Tax Sale Interest | B26: 5000 | C26: 5000 | D26: 5000 | E26: 5000
A27: EMS Fees | B27: 500000 | C27: 500000 | D27: 500000 | E27: 500000
A28: Recreation | B28: 3500 | C28: 3500 | D28: 3500 | E28: 3500
A29: McCormick School District - SRO | B29: 30000 | C29: 30000 | D29: 30000 | E29: 205081
A30: Other Local Revenues | B30: 15000 | C30: 15000 | D30: 15000 | E30: 15000
A31: SUBTOTAL LOCAL REVENUES | B31: =SUM(B6:B30) -> 7130876 | C31: =SUM(C6:C30) -> 7486084 | D31: =SUM(D6:D30) -> 7953874 | E31: =SUM(E6:E30) -> 8869928
A35: REVENUE STATE-SHARED | B35: FY 2019-2020 | C35: FY 2020-2021 | D35: FY 2020-2022 | E35: FY 2022-2023
A36: Local Govt Fund | B36: 425531 | C36: 447063 | D36: 458002 | E36: 404000
A37: Vital Records Fees | B37: 200 | C37: 200 | D37: 200 | E37: 0
A38: SUBTOTAL REVENUE STATE SHARED | B38: =SUM(B36:B37) -> 425731 | C38: =SUM(C36:C37) -> 447263 | D38: =SUM(D36:D37) -> 458202 | E38: =SUM(E36:E37) -> 404000
A42: REVENUE STATE-AID | B42: FY 2019-2020 | C42: FY 2020-2021 | D42: FY 2020-2022 | E42: =+E35 -> FY 2022-2023
A43: Accomodatons Tax | B43: 110000 | C43: 110000 | D43: 110000 | E43: 110000
A44: Election Commission Reimbursement | B44: 44030 | C44: 44030 | D44: 44030 | E44: 44030
A45: Merchants Inventory Tax | B45: 8321 | C45: 8321 | D45: 8321 | E45: 8321
A46: Reimbursement RE (Homestead) | B46: 435000 | C46: 435000 | D46: 435000 | E46: 435000
A47: MFG Tax Exempt | B47: 25000 | C47: 25000 | D47: 25000 | E47: 25000
A48: Veteran's Affairs | B48: 4700 | C48: 4700 | D48: 4700 | E48: 4700
A49: Motor Carrier Taxes | B49: 115000 | C49: 115000 | D49: 115000 | E49: 125000
A50: Salary Supplement Sheriff | B50: 1575 | C50: 1575 | D50: 1575 | E50: 1575
A51: Salary Supplement Coroner | B51: 1575 | C51: 1575 | D51: 1575 | E51: 1575
A52: Salary Supplement Clerk of Court | B52: 1575 | C52: 1575 | D52: 1575 | E52: 1575
A53: Salary Supplement Probate Judge | B53: 1575 | C53: 1575 | D53: 1575 | E53: 1575
A54: SUBTOTAL REVENUE STATE-AID | B54: =SUM(B43:B53) -> 748351 | C54: =SUM(C43:C53) -> 748351 | D54: =SUM(D43:D53) -> 748351 | E54: =SUM(E43:E53) -> 758351
A57: REVENUE FEDERAL | B57: FY 2019-2020 | C57: FY 2020-2021 | D57: FY 2020-2022 | E57: =+E42 -> FY 2022-2023
A58: National Forest Funds | B58: 65000 | C58: 65000 | D58: 65000 | E58: 65000
A59: Emergency Management Assist. | B59: 5000 | C59: 5000 | D59: 5000 | E59: 5000
A60: Bureau of Land Management | B60: 30000 | C60: 30000 | D60: 30000 | E60: 30000
A61: Federal Financial Participation | B61: 24900 | C61: 24900 | D61: 24900 | E61: 24900
A62: Flood Control | B62: 34000 | C62: 34000 | D62: 34000 | E62: 34000
A63: Mineral | B63: 0 | C63: 0 | D63: 0 | E63: 0
A64: SUBTOTAL FEDERAL | B64: =SUM(B58:B63) -> 158900 | C64: =SUM(C58:C63) -> 158900 | D64: =SUM(D58:D63) -> 158900 | E64: =SUM(E58:E63) -> 158900
A67: REVENUE OTHER | B67: FY 2019-2020 | C67: FY 2020-2021 | D67: FY 2020-2022 | E67: =+E57 -> FY 2022-2023
A68: Rent/Walsh Dental | B68: 12708 | C68: 12708 | D68: 12708 | E68: 12708
A69: Rent/Lease Water & Sewer | B69: 17400 | C69: 17400 | D69: 17400 | E69: 17400
A70: Solicitor's Worthless Check Disbursements | B70: 500 | C70: 500 | D70: 500 | E70: 500
A71: SUBTOTAL REVENUE OTHER | B71: =SUM(B68:B70) -> 30608 | C71: =SUM(C68:C70) -> 30608 | D71: =SUM(D68:D70) -> 30608 | E71: =SUM(E68:E70) -> 30608
A74: TRANSFERS | B74: FY 2019-2020 | C74: FY 2020-2021 | D74: FY 2020-2022 | E74: =+E67 -> FY 2022-2023
A75: Unreserved Fund Balance | B75: 180795 | C75: 365780 | D75: 1038878 | E75: =1649318 -> 1649318
A76: SUBTOTAL TRANSFERS | B76: 180795 | C76: =+C75 -> 365780 | D76: =+D75 -> 1038878 | E76: =+E75 -> 1649318
A78: TOTAL REVENUES | B78: =SUM(B76,B71,B64,B54,B38,B31) -> 8675261 | C78: =SUM(C76,C71,C64,C54,C38,C31) -> 9236986 | D78: =SUM(D76,D71,D64,D54,D38,D31) -> 10388813 | E78: =SUM(E76,E71,E64,E54,E38,E31) -> 11871105

Sheet EXP
A1: MCCORMICK COUNTY
A2: EXPENDITURES
A3: FY 2023
B6: FY 2019-2020 | C6: FY 2020-2021 | D6: FY 2021-2022 | E6: FY 2022-2023
A7: COUNTY COUNCIL
A8: Employee Salaries | B8: 39309 | C8: =8313+7749+7749+7749+7749 -> 39309 | D8: =8313+7749+7749+7749+7749 -> 39309 | E8: =8313+7749+7749+7749+7749 -> 39309
A9: Employee Fringe Benefits | B9: 20364 | C9: 19588 | D9: 20374 | E9: 22467
A10: Contingency | B10: 0 | C10: 0 | D10: 0 | E10: 0
A11: Printing & Office Supplies | B11: 2500 | C11: 2500 | D11: 2500 | E11: 2500
A12: Travel/Lodging Mileage | B12: 13000 | C12: 13000 | D12: 13000 | E12: 13000
A13: Training | B13: 5500 | C13: 5500 | D13: 5500 | E13: 5500
A14: Special Projects | B14: 10000 | C14: 10000 | D14: 10000 | E14: 10000
A15: Subtotal County Council | B15: =SUM(B8:B14) -> 90673 | C15: =SUM(C8:C14) -> 89897 | D15: =SUM(D8:D14) -> 90683 | E15: =SUM(E8:E14) -> 92776
B19: FY 2019-2020 | C19: =+C6 -> FY 2020-2021 | D19: =+D6 -> FY 2021-2022 | E19: FY 2022-2023
A20: ADMINISTRATOR
A21: Employee Salaries | B21: 131887 | C21: =94575+43988 -> 138563 | D21: =99552+46303 -> 145855 | E21: =107517+50267 -> 157784
A22: Employee Fringe Benefits | B22: 44933 | C22: 45295 | D22: 49904 | E22: 55538
A23: Contingency | B23: 0 | C23: 0 | D23: 0 | E23: 0
A24: Printing & Office Supplies | B24: 2500 | C24: 2500 | D24: 2500 | E24: 2500
A25: Telephone | B25: 8100 | C25: 8100 | D25: 8100 | E25: 8100
A26: Travel/Lodging Mileage | B26: 6400 | C26: 6400 | D26: 6400 | E26: 6400
A27: Legal Services | B27: 30000 | C27: 30000 | D27: 35000 | E27: 35000
A28: Advertising | B28: 2500 | C28: 2500 | D28: 2500 | E28: 2500
A29: Training | B29: 2500 | C29: 3000 | D29: 3000 | E29: 3000
A30: Maintenance Contracts | B30: 2500 | C30: 2500 | D30: 2500 | E30: 2500
A31: Special Projects | B31: 71978 | C31: 87788 | D31: =87788-32000 -> 55788 | E31: 91902
A32: Capital Outlay | D32: 0 | E32: 160000
A33: Subtotal Administrator | B33: =SUM(B21:B31) -> 303298 | C33: =SUM(C21:C31) -> 326646 | D33: =SUM(D21:D32) -> 311547 | E33: =SUM(E21:E32) -> 525224
B37: FY 2019-2020 | C37: =+C19 -> FY 2020-2021 | D37: =+D19 -> FY 2021-2022 | E37: =+E19 -> FY 2022-2023
A38: FINANCE
A39: Employee Salaries | B39: 118248 | C39: 121652 | D39: 128504 | E39: 131896
A40: Employee Fringe Benefits | B40: 52468 | C40: 58707 | D40: 58036 | E40: 64156
A41: Professional Services - Audit | B41: 20940 | C41: 21000 | D41: 21000 | E41: 21000
A42: Data Processing | B42: 8200 | C42: 8200 | D42: 8200 | E42: 8500
A43: Printing & Office Supplies | B43: 3500 | C43: 3500 | D43: 4000 | E43: 4500
A44: Dues & Memberships | B44: 140 | C44: 180 | D44: 200 | E44: 300
A45: Travel/Lodging Mileage | B45: 1500 | C45: 2000 | D45: 2500 | E45: 4000
A46: Training | B46: 500 | C46: 1000 | D46: 1000 | E46: 2500
A47: Machinery/Equipment | B47: 500 | C47: 500 | D47: 600 | E47: 118500
A48: Subtotal Finance | B48: =SUM(B39:B47) -> 205996 | C48: =SUM(C39:C47) -> 216739 | D48: =SUM(D39:D47) -> 224040 | E48: =SUM(E39:E47) -> 355352
B52: FY 2019-2020 | C52: =+C37 -> FY 2020-2021 | D52: =+D37 -> FY 2021-2022 | E52: =+E37 -> FY 2022-2023
A53: SUPPLEMENTAL
A54: Electricity | B54: 160000 | C54: 160000 | D54: 160000 | E54: 165000
A55: Contract Lawn Maintenance | B55: 86130 | C55: 86130 | D55: 86130 | E55: 132000
A56: Unemployment Compensation | B56: 4000 | C56: 7000 | D56: 7000 | E56: 7000
A57: Worker's Compensation | B57: 136247 | C57: 155367 | D57: 125000 | E57: 130000
A58: Bonds | B58: 6550 | C58: 6600 | D58: 6600 | E58: 6600
A59: Planning Commission | B59: 1000 | C59: 1000 | D59: 1000 | E59: 1000
A60: Property & Liability Insurance | B60: 124579 | C60: 207000 | D60: 217500 | E60: 217500
A61: Copiers/Postage Machine Maint. | B61: 22536 | C61: 22536 | D61: 22536 | E61: 22540
A62: Capital Purchase/Improvement | B62: 0 | C62: 0 | D62: 0 | E62: 0
A63: The Alliance | B63: 0 | C63: 0 | D63: 0 | E63: 0
A64: IT Support | B64: 91692 | C64: 46692 | D64: 46692 | E64: 46700
A65: Grants Local Match | B65: 10000 | C65: 10000 | D65: 10000 | E65: 10000
A66: Mack Maintenance Agreement | B66: 0 | C66: 0 | D66: 0 | E66: 0
A67: Health Care Reimbursement | B67: 0 | C67: 0 | D67: 0 | E67: 0
A68: Administration Building - Bond | B68: 0 | C68: 0 | D68: 0 | E68: 0
A69: Court House Security | B69: 37000 | C69: 37000 | D69: 37000 | E69: 42000
A70: Web Design/Economic Development | B70: 1500 | C70: 1500 | D70: 1500 | E70: 1500
A71: CMS Maintenance/Support | B71: 36000 | C71: 36000 | D71: 36000 | E71: 36000
A72: GIS Support | B72: 6000 | C72: 6000 | D72: 6000 | E72: 6000
A73: BB&T Lease Purchase - Ambulances | B73: 72329 | C73: 0 | D73: 87188 | E73: 87188
A74: Water Sewer Loan Payment | B74: 0 | C74: 87614 | D74: 87614 | E74: 5658
A75: Subtotal Supplemental | B75: =SUM(B54:B74) -> 795563 | C75: =SUM(C54:C74) -> 870439 | D75: =SUM(D54:D74) -> 937760 | E75: =SUM(E54:E74) -> 916686
B78: FY 2019-2020 | C78: =+C52 -> FY 2020-2021 | D78: =+D52 -> FY 2021-2022 | E78: =+E52 -> FY 2022-2023
A79: SHERIFF
A80: Sheriff | B80: 57339 | C80: 58371 | D80: 61443 | E80: 63287
A81: Supplement | B81: 1575 | C81: 1575 | D81: 1575 | E81: 15000
A82: Employee Salaries | B82: 583150 | C82: 584419 | D82: 679614 | E82: 778640
A83: Employee Overtime | B83: 12000 | C83: 15000 | D83: 17000 | E83: 60000
A84: Employee Fringe Benefits | B84: 298920 | C84: 294724 | D84: 346339 | E84: 426990
A85: Printing & Office Supplies | B85: 3000 | C85: 3000 | D85: 3000 | E85: 6500
A86: Uniforms | B86: 5000 | C86: 7500 | D86: 7500 | E86: 9000
A87: Telephone | B87: 8500 | C87: 8500 | D87: 8500 | E87: 8500
A88: Wireless Telephone | B88: 4900 | C88: 4900 | D88: 4900 | E88: 9700
A89: Dues & Memberships | B89: 2300 | C89: 2300 | D89: 2300 | E89: 3500
A90: Vehicle Operations | B90: 30000 | C90: 30000 | D90: 30000 | E90: 40000
A91: Gasoline | B91: 65000 | C91: 65000 | D91: 65000 | E91: 84000
A92: Travel/Lodging Mileage | B92: 4500 | C92: 4500 | D92: 4500 | E92: 4500
A93: Training | B93: 2500 | C93: 3000 | D93: 3000 | E93: 3000
A94: Special Projects | B94: 3540 | C94: 4000 | D94: 4000 | E94: 10000
A95: Machinery/Equipment | B95: 10573 | C95: 10573 | D95: 10573 | E95: 41529
A96: Maintenance Contract | B96: 5600 | C96: 5600 | D96: 5600 | E96: 5600
A97: Vehicle Purchase | B97: 0 | C97: 0 | D97: =48000+32000 -> 80000 | E97: 0
A98: Subtotal Sheriff | B98: =SUM(B80:B97) -> 1098397 | C98: =SUM(C80:C97) -> 1102962 | D98: =SUM(D80:D97) -> 1334844 | E98: =SUM(E80:E97) -> 1569746
B103: FY 2019-2020 | C103: =+C78 -> FY 2020-2021 | D103: =+D78 -> FY 2021-2022 | E103: =+E78 -> FY 2022-2023
A104: JAIL
A105: Employee Salaries | B105: 529694 | C105: 544564 | D105: 587498 | E105: 592764
A106: Employee Overtime | B106: 10000 | C106: 10000 | D106: 12000 | E106: 56650
A107: Employee Fringe Benefits | B107: 245924 | C107: 264990 | D107: 285267 | E107: 309414
A108: Printing & Office Supplies | B108: 1000 | C108: 1000 | D108: 1000 | E108: 1000
A109: Medical/Laboratory | B109: 44000 | C109: 45000 | D109: 45000 | E109: 45000
A110: Uniforms | B110: 2000 | C110: 2000 | D110: 2000 | E110: 2000
A111: Telephone | B111: 8376 | C111: 9000 | D111: 9000 | E111: 9000
A112: Dues & Memberships | B112: 150 | C112: 150 | D112: 150 | E112: 150
A113: Janitoral Supplies | B113: 3000 | C113: 3000 | D113: 3000 | E113: 3000
A114: Travel/Lodging Mileage | B114: 2000 | C114: 2000 | D114: 2000 | E114: 2000
A115: Vehicles | B115: 0 | C115: 70000 | D115: 0 | E115: 0
A116: Prisoner Costs | B116: 45000 | C116: 46000 | D116: 46000 | E116: 46000
A117: Training | B117: 2000 | C117: 2000 | D117: 2000 | E117: 4500
A118: Computer-Online Sled | B118: 0 | C118: 0 | D118: 0 | E118: 0
A119: Maintenance Contracts | B119: 6600 | C119: 6600 | D119: 6600 | E119: 43670
A120: Subtotal Jail | B120: =SUM(B105:B119) -> 899744 | C120: =SUM(C105:C119) -> 1006304 | D120: =SUM(D105:D119) -> 1001515 | E120: =SUM(E105:E119) -> 1115148
B123: FY 2019-2020 | C123: =+C103 -> FY 2020-2021 | D123: =+D103 -> FY 2021-2022 | E123: =+E103 -> FY 2022-2023
A124: CORONER
A125: Corner | B125: 15041 | C125: 15312 | D125: 16118 | E125: 16601
A126: Supplement | B126: 1575 | C126: 1575 | D126: 1575 | E126: 1575
A127: Employee Fringe Benefits | B127: 10003 | C127: 9604 | D127: 10166 | E127: 10860
A128: Post Morton Examination | B128: 8000 | C128: 8500 | D128: 8500 | E128: 8500
A129: Contract Personnel | B129: 1000 | C129: 1700 | D129: 1700 | E129: 1700
A130: Printing & Office Supplies | B130: 125 | C130: 200 | D130: 200 | E130: 200
A131: Telephone | B131: 300 | C131: 300 | D131: 300 | E131: 750
A132: Dues & Memberships | B132: 250 | C132: 250 | D132: 250 | E132: 250
A133: Maint. Morgue Repairs | B133: 300 | C133: 300 | D133: 8821 | E133: 1000
A134: Travel/Lodging Mileage | B134: 100 | C134: 100 | D134: 100 | E134: 1460
A135: Training | B135: 100 | C135: 100 | D135: 100 | E135: 600
A136: Subtotal Coroner | B136: =SUM(B125:B135) -> 36794 | C136: =SUM(C125:C135) -> 37941 | D136: =SUM(D125:D135) -> 47830 | E136: =SUM(E125:E135) -> 43496
B139: FY 2019-2020 | C139: =+C123 -> FY 2020-2021 | D139: =+D123 -> FY 2021-2022 | E139: =+E123 -> FY 2022-2023
A140: CLERK OF COURT
A141: Clerk of Court | B141: 47378 | C141: 48231 | D141: 50769 | E141: 52292
A142: Supplement | B142: 1575 | C142: 1575 | D142: 1575 | E142: 15000
A143: Employee Salaries | B143: 11564 | C143: 11564 | D143: 11911 | E143: 12268
A144: Employee Fringe Benefits | B144: 25103 | C144: 24372 | D144: 26327 | E144: 32211
A145: Data Processing | B145: 15980 | C145: 15000 | D145: 15000 | E145: 15000
A146: Printing & Office Supplies | B146: 3500 | C146: 4000 | D146: 4000 | E146: 4000
A147: Telephone | B147: 5000 | C147: 5000 | D147: 5000 | E147: 5000
A148: Travel/Lodging Mileage | B148: 4000 | C148: 5000 | D148: 5000 | E148: 5000
A149: Court Expense | B149: 14000 | C149: 14000 | D149: 14000 | E149: 14000
A150: Deed Books | B150: 7500 | C150: 7500 | D150: 10000 | E150: 12500
A151: Special Project | B151: 1300 | C151: 1500 | D151: 2000 | E151: 2000
A152: Subtotal Clerk of Court | B152: =SUM(B141:B151) -> 136900 | C152: =SUM(C141:C151) -> 137742 | D152: =SUM(D141:D151) -> 145582 | E152: =SUM(E141:E151) -> 169271
B156: FY 2019-2020 | C156: =+C139 -> FY 2020-2021 | D156: =+D139 -> FY 2021-2022 | E156: =+E139 -> FY 2022-2023
A157: TREASURER
A158: Tax Collector | B158: 2336 | C158: 2336 | D158: 2406 | E158: 2478
A159: Treasurer | B159: 24666 | C159: 25110 | D159: 26432 | E159: 27225
A160: Employee Salaries | B160: 57668 | C160: 59324 | D160: 62446 | E160: 64319
A161: Employee Fringe Benefits | B161: 25551 | C161: 30603 | D161: 33477 | E161: 36260
A162: Data Processing | B162: 42000 | C162: 75094 | D162: 45000 | E162: 40000
A163: Printing & Office Supplies | B163: 1800 | C163: 2000 | D163: 2000 | E163: 2000
A164: Telephone | B164: 2004 | C164: 2004 | D164: 2004 | E164: 2000
A165: Dues & Memberships | B165: 235 | C165: 250 | D165: 250 | E165: 250
A166: Travel/Lodging Mileage | B166: 1966 | C166: 2352 | D166: 2352 | E166: 2700
A167: Training | B167: 645 | C167: 925 | D167: 925 | E167: 800
A168: Machinery/Equipment | B168: 250 | C168: 1800 | D168: 1800 | E168: 1800
A169: Bank Service Fees | B169: 3000 | C169: 3000 | D169: 3000 | E169: 6000
A170: Furniture/Equipment | B170: 0 | C170: 0 | D170: 0 | E170: 0
A171: Subtotal Treasurer | B171: =SUM(B158:B170) -> 162121 | C171: =SUM(C158:C170) -> 204798 | D171: =SUM(D158:D170) -> 182092 | E171: =SUM(E158:E170) -> 185832
B174: FY 2019-2020 | C174: =+C156 -> FY 2020-2021 | D174: =+D156 -> FY 2021-2022 | E174: =+E156 -> FY 2022-2023
A175: AUDITOR
A176: Auditor | B176: 24666 | C176: 24666 | D176: 25964 | E176: 26743
A177: Employee Salaries | B177: 32708 | C177: 34364 | D177: 36172 | E177: 37257
A178: Employee Fringe Benefits | B178: 19018 | C178: 18933 | D178: 20897 | E178: 22413
A179: Data Processing | B179: 63075 | C179: 57734 | D179: 60000 | E179: 60000
A180: Printing & Office Supplies | B180: 1300 | C180: 1500 | D180: 1500 | E180: 1500
A181: Telephone | B181: 1360 | C181: 1360 | D181: 1360 | E181: 1360
A182: Dues & Memberships | B182: 100 | C182: 100 | D182: 100 | E182: 100
A183: Travel/Lodging Mileage | B183: 1055 | C183: 2200 | D183: 2200 | E183: 2200
A184: Training | B184: 200 | C184: 800 | D184: 800 | E184: 800
A185: Machinery/Equipment | B185: 0 | C185: 0 | D185: 0 | E185: 0
A186: Subtotal Auditor | B186: =SUM(B176:B185) -> 143482 | C186: =SUM(C176:C185) -> 141657 | D186: =SUM(D176:D185) -> 148993 | E186: =SUM(E176:E185) -> 152373
B189: FY 2019-2020 | C189: =+C174 -> FY 2020-2021 | D189: =+D174 -> FY 2021-2022 | E189: =+E174 -> FY 2022-2023
A190: VETERAN'S AFFAIRS
A191: Employees Salaries | B191: 28426 | C191: 28719 | D191: 29591 | E191: 30743
A192: Employee Fringe Benefits | B192: 6598 | C192: 6666 | D192: 7460 | E192: 7750
A193: Contingency | B193: 200 | C193: 300 | D193: 300 | E193: 300
A194: Printing & Office Supplies | B194: 900 | C194: 1050 | D194: 1050 | E194: 1100
A195: Computer Maintenance | B195: 750 | C195: 750 | D195: 750 | E195: 750
A196: Telephone | B196: 1300 | C196: 1300 | D196: 1300 | E196: 1350
A197: Dues & Memberships | B197: 170 | C197: 180 | D197: 180 | E197: 200
A198: Travel/Lodging Mileage | B198: 3000 | C198: 4500 | D198: 4200 | E198: 4341
A199: Training | B199: 600 | C199: 600 | D199: 600 | E199: 600
A200: Machinery/Equipment | B200: 200 | C200: 200 | D200: 200 | E200: 200
A201: Subtotal Veteran's Affairs | B201: =SUM(B191:B200) -> 42144 | C201: =SUM(C191:C200) -> 44265 | D201: =SUM(D191:D200) -> 45631 | E201: =SUM(E191:E200) -> 47334
B205: FY 2019-2020 | C205: =+C189 -> FY 2020-2021 | D205: =+D189 -> FY 2021-2022 | E205: =+E189 -> FY 2022-2023
A206: TAX ASSESSOR
A207: Employees Salaries | B207: 153735 | C207: 155901 | D207: 164106 | E207: 169029
A208: Employee Fringe Benefits | B208: 63842 | C208: 62009 | D208: 67195 | E208: 73601
A209: Data Processing | B209: 18591 | C209: 10000 | D209: 18500 | E209: 11000
A210: Printing & Office Supplies | B210: 2000 | C210: 2000 | D210: 2000 | E210: 2000
A211: Telephone | B211: 2800 | C211: 2800 | D211: 2800 | E211: 2800
A212: Travel/Lodging Mileage | B212: 1700 | C212: 2000 | D212: 2000 | E212: 2100
A213: Training | B213: 1500 | C213: 2220 | D213: 2220 | E213: 2220
A214: Aerial Flight Photo | B214: 0 | C214: 0 | D214: 0 | E214: 0
A215: Contract Support | B215: 3960 | C215: 3960 | D215: 8400 | E215: 8400
A216: Machinery/Equipment | D216: 0 | E216: 0
A217: Subtotal Tax Assessor | B217: =SUM(B207:B215) -> 248128 | C217: =SUM(C207:C215) -> 240890 | D217: =SUM(D207:D216) -> 267221 | E217: =SUM(E207:E216) -> 271150
B221: FY 2019-2020 | C221: =+C205 -> FY 2020-2021 | D221: =+D205 -> FY 2021-2022 | E221: =+E205 -> FY 2022-2023
A222: MAGISTRATE
A223: Chief Magistrate | B223: 49474 | C223: 49474 | D223: 49474 | E223: 49474
A224: Supplement | B224: 3000 | C224: 3000 | D224: 60451 | E224: 60451
A225: Magistrate | B225: 60451 | C225: 60451 | D225: 3000 | E225: 3000
A226: Employees Salary | B226: 28204 | C226: 28909 | D226: 30430 | E226: 31343
A227: Employee Fringe Benefits | B227: 55266 | C227: 53798 | D227: 57018 | E227: 57792
A228: Data Processing | B228: 0 | C228: 0 | D228: 0 | E228: 0
A229: Printing & Office Supplies | B229: 1500 | C229: 1500 | D229: 1500 | E229: 2000
A230: Telephone | B230: 1750 | C230: 2000 | D230: 2000 | E230: 2000
A231: Wireless Telephones | B231: 1300 | C231: 1300 | D231: 1300 | E231: 1500
A232: Travel/Lodging Mileage | B232: 4200 | C232: 4200 | D232: 6000 | E232: 7000
A233: Court Expense | B233: 7500 | C233: 9000 | D233: 12000 | E233: 14000
A234: Training | B234: 1500 | C234: 1500 | D234: 1500 | E234: 2000
... 236 more rows

Sheet VA
A1: MCCORMICK COUNTY
A2: EXPENDITURES
A3: FY 2022- 2023
B5: FY 2019-2020 | C5: FY 2020-2021 | D5: FY 2021-2022 | E5: FY 2022-2023
A6: VETERAN'S AFFAIRS
A7: Employees Salaries | B7: 28426 | C7: 28719 | D7: =+EXP!D191 -> 29591 | E7: 29848
A8: Employee Fringe Benefits | B8: 6598 | C8: 6666 | D8: =+EXP!D192 -> 7460 | E8: 7525
A9: Contingency | B9: 200 | C9: 300 | D9: =+EXP!D193 -> 300 | E9: 300
A10: Printing & Office Supplies | B10: 900 | C10: 1050 | D10: =+EXP!D194 -> 1050 | E10: 1100
A11: Computer Maintenance | B11: 750 | C11: 750 | D11: =+EXP!D195 -> 750 | E11: 750
A12: Telephone | B12: 1300 | C12: 1300 | D12: =+EXP!D196 -> 1300 | E12: 1350
A13: Dues & Memberships | B13: 170 | C13: 180 | D13: =+EXP!D197 -> 180 | E13: 200
A14: Travel/Lodging Mileage | B14: 3000 | C14: 4500 | D14: =+EXP!D198 -> 4200 | E14: 4341
A15: Training | B15: 600 | C15: 600 | D15: =+EXP!D199 -> 600 | E15: 600
A16: Machinery/Equipment | B16: 200 | C16: 200 | D16: =+EXP!D200 -> 200 | E16: 200
A17: Subtotal Veteran's Affairs | B17: =SUM(B7:B16) -> 42144 | C17: =SUM(C7:C16) -> 44265 | D17: =SUM(D7:D16) -> 45631 | E17: =SUM(E7:E16) -> 46214

Sheet Vic Advoc
A1: ATTACHMENT A: VICTIM'S ADVOCATE REVENUE AND EXPENDITURES
A2: FY 2022-2023
B5: FY 2018-2019 | C5: FY 2020-2021 | D5: FY 2021-2022 | E5: FY 2022-2023
A6: REVENUES
A7: Victim Surcharge Magistrate | B7: 9000 | C7: 9000 | D7: 9000 | E7: 9000
A8: Victim Surcharge Clerk of Court | B8: 2500 | C8: 2500 | D8: 2500 | E8: 2500
A9: Clerk of Court 38% | B9: 300 | C9: 300 | D9: 300 | E9: 300
A10: Magistrate 12% | B10: 9200 | C10: 9200 | D10: 9200 | E10: 9200
A11: Subtotal Local Revenue | B11: =SUM(B7:B10) -> 21000 | C11: =SUM(C7:C10) -> 21000 | D11: =SUM(D7:D10) -> 21000 | E11: =SUM(E7:E10) -> 21000
B14: FY 2018-2019 | C14: FY 2020-2021 | D14: =+D5 -> FY 2021-2022 | E14: FY 2022-2023
A16: Unexpended Fund Balance | B16: 0 | C16: 0 | D16: 0 | E16: 0
B19: FY 2018-2019 | C19: FY 2020-2021 | D19: =+D5 -> FY 2021-2022 | E19: FY 2022-2023
A21: TOTAL REVENUE | B21: 21000 | C21: 21000 | D21: 21000 | E21: 21000
B24: FY 2018-2019 | C24: FY 2020-2021 | D24: FY 2020-2022 | E24: FY 2022-2023
A25: EXPENDITURES
A26: Employee Salaries * | B26: 0 | C26: 0 | D26: 0 | E26: 0
A27: Employee Fringe Benefits * | B27: 0 | C27: 0 | D27: 0 | E27: 0
A28: Victim Services or Assistance | B28: 1000 | C28: 1000 | D28: 1000 | E28: 1000
A29: Printing & Office Supplies | B29: 1000 | C29: 1000 | D29: 1000 | E29: 1000
A30: Telephone | B30: 1080 | C30: 1080 | D30: 1080 | E30: 1080
A31: Vehicle Operations | B31: 4000 | C31: 4000 | D31: 4000 | E31: 4000
A32: Travel/Lodging Mileage | B32: 2500 | C32: 2500 | D32: 2500 | E32: 2500
A33: Training | B33: 1500 | C33: 1500 | D33: 1500 | E33: 1500
A34: Subtotal Victim Services | B34: =SUM(B26:B33) -> 11080 | C34: =SUM(C26:C33) -> 11080 | D34: =SUM(D26:D33) -> 11080 | E34: =SUM(E26:E33) -> 11080
B37: FY 2018-2019 | C37: FY 2020-2021 | D37: FY 2020-2022 | E37: FY 2022-2023
A39: Due to General Fund | B39: 9920 | C39: 9920 | D39: 9920 | E39: 9920
A42: TOTAL EXPENDITURES | B42: 21000 | C42: 21000 | D42: 21000 | E42: 21000
A46: *All expenditures are made from a special revenue account. Employee salary and fringe is
A47: is paid out of the General Fund
